Workbook

Sheet Final summary
B1: SUMMARY | F1: TOTAL TO DATE
A3: 1 | B3: Preliminaries | C3: Page | F3: =Preliminaries!D432 -> 0
A5: 2 | B5: Earthworks (provisional) | C5: Page | F5: =Earthworks!F56 -> 0
A7: 3 | B7: Concrete, formwork and reinforcement | C7: Page | F7: ='Concrete, formwork + reinfmnt'!F66 -> 0
A9: 4 | B9: Masonry | C9: Page | F9: =Masonry!F48 -> 0
A11: 5 | B11: Waterproofing | C11: Page | F11: =Waterproofing!F51 -> 0
A13: 6 | B13: Roof coverings, claddings, etc | C13: Page | F13: ='Roof coverings, claddings, etc'!F51 -> 0
A15: 7 | B15: Carpentry and joinery | C15: Page | F15: ='Carpentry and joinery'!F38 -> 0
A17: 8 | B17: Ceilings, partitions and access flooring | C17: Page | F17: ='Ceilings, partitions, etc'!F57 -> 0
A19: 9 | B19: Ironmongery | C19: Page | F19: =Ironmongery!F33 -> 0
A21: 10 | B21: Metalwork | C21: Page | F21: =Metalwork!F52 -> 0
A23: 11 | B23: Plastering | C23: Page | F23: =Plastering!F56 -> 0
A25: 12 | B25: Tiling | C25: Page | F25: =Tiling!F51 -> 0
A27: 13 | B27: Plumbing and drainage | C27: Page | F27: ='Plumbing and drainage'!F46 -> 0
A29: 14 | B29: Paintwork | C29: Page | F29: =Paintwork!F51 -> 0
A31: 15 | B31: External work | C31: Page | F31: ='External work'!F28 -> 0
B34: Sub total Excluding Vat | F34: =SUM(F2:F33) -> 0
B36: Add Contingency | F36: R300,000
B38: Sub total 2 Excluding Vat
B40: Value added tax at 15%
B42: Subtotal Carried to Form of Offer

Sheet Preliminaries
A2: Item No | C2: Quantity | D2: Amount
B3: BILL NO 1
B5: PRELIMINARIES
B7: BUILDING AGREEMENT AND PRELIMINARIES
B9: Disclaimer
B11: While the ASAQS aims to ensure that its publications represent best practice, the ASAQS does not accept or assume any liability or responsibility for any events or consequences thereof that derive from the use of the Preliminaries Master Bill. Such Master Bill is not exhaustive and is therefore only intended to provide general guidance to those who wish to make use of it. This publication is provided "as is" without warranty of any kind, either expressed or implied including but without limitation to warranties of merchantability, fitness for a particular purpose and non-infringement
B13: The JBCC Series 2000 Principal Building Agreement (July 2007 edition 5.0 - reprint 1) prepared by the Joint Building Contract Committee shall be the applicable building agreement, amended as hereinafter described
B15: The JBCC Principal Building Agreement Contract Data EC and the JBCC Principal Building Agreement Contract Data CE form an integral part of this agreement.
B17: The ASAQS Preliminaries (November 2007 edition) published by the Association of South African Quantity Surveyors for use with the said JBCC Principal Building Agreement shall be deemed to be incorporated in these provisional bills of quantities
B19: Contractors are referred to the abovementioned documents for the full intent and meaning of each clause thereof
B21: These clauses are hereinafter referred to by clause number and heading only. Where standard clauses or alternatives are not entirely applicable to this agreement such modifications, corrections or supplements as will apply are given under each relevant clause heading and such modifications, corrections or supplements shall take precedence notwithstanding anything contrary contained in the abovementioned documents
B23: Where any item is not relevant to this specific agreement such item is marked N/A, signifying "not applicable"
B25: PREAMBLES FOR TRADES
B27: The Model Preambles for Trades (2008 edition) as published by the Association of South African Quantity Surveyors shall be deemed to be incorporated in these provisional bills of quantities and no claims arising from brevity of description of items fully described in the said Model Preambles will be entertained
B29: Supplementary preambles are incorporated in these provisional bills of quantities to satisfy the requirements of this project. Such supplementary preambles shall take precedence over the provisions of the said Model Preambles
B31: The contractor's prices for all items throughout these provisional bills of quantities must take account of and include for all of the obligations, requirements and specifications given in the said Model Preambles and in any supplementary preambles
B33: PRICING OF PRELIMINARIES
B35: Should the contractor select Option A in terms of sub clause 3.2.1 in the Contract Data - Contractor to Employer (CE) for the purpose of adjustment of these preliminaries, the amount entered into the amount column in these preliminaries is to be divided into one or more of the three categories provided namely Fixed (F), Value Related (V) and Time Related (T)
B37: SECTION A - PRINCIPAL BUILDING AGREEMENT
B39: Definitions (A1)
A41: 1 | B41: Clause 1.0 - Definitions and interpretation The measuring system used for the preparation of the provisional bills of quantities is the Standard System of Measuring Building Work (sixth edition, revised 1999) published by the Association of South African Quantity Surveyors [1.1]
C42: Item
B44: Objective and preparations (A2 - A14)
A45: 2 | B45: Clause 2.0 - Offer acceptance and performance obligations
B46: F: ............................ V: ............................ T: ............................ | C46: Item
B54: Carried Forward | C54: R
B55: Brought Forward | C55: R
A57: 3 | B57: Clause 3.0 - Documents
B59: The contract drawings are as listed in Part C 3.3. Scope Of Works.
B60: Provision is made in the summary page of these provisional bills of quantities for the inclusion of Value Added Tax (VAT) [3.5]
B61: The principal agent shall decide which portion of the priced document may be used as a specification of materials and goods or methods, if any [3.9]
B62: =B46 -> F: ............................ V: ............................ T: ............................ | C62: Item
A64: 4 | B64: Clause 4.0 - Design responsibility
B65: =B46 -> F: ............................ V: ............................ T: ............................ | C65: Item
A67: 5 | B67: Clause 5.0 - Employer's agents
B68: =B65 -> F: ............................ V: ............................ T: ............................ | C68: Item
A70: 6 | B70: Clause 6.0 - Contractor's site representative
C71: Item
A73: 7 | B73: Clause 7.0 - Compliance with laws and regulations
B75: Without limiting the generality of the provisions of clause 7.0, the contractor's attention is drawn to the provisions of the Construction Regulations, 2003 issued in terms of the Occupational Health and Safety Act, 1993. It is specifically stated that the employer shall prepare a documented health and safety specification for the works (refer to Annexure 5.1 for a copy of the relevant specification) and that the employer shall ensure that the contractor has made provision for the cost of health and safety measures during the execution of the works. The contractor shall price opposite this item (refer to Annexure 5.1 for a copy of the relevant Bills of Quantities for pricing) for compliance with the act and the regulations and the provisions of the aforementioned health and safety specification [7.1]
B76: =B68 -> F: ............................ V: ............................ T: ............................ | C76: Item
A78: 8 | B78: Clause 8.0 - Works risk
B79: =$B$76 -> F: ............................ V: ............................ T: ............................ | C79: Item
A81: 9 | B81: Clause 9.0 - Indemnities
B82: =$B$76 -> F: ............................ V: ............................ T: ............................ | C82: Item
A84: 10 | B84: Clause 10.0 - General insurances
B85: =$B$76 -> F: ............................ V: ............................ T: ............................ | C85: Item
A87: 11 | B87: Clause 11.0 - Special insurances
B88: =$B$76 -> F: ............................ V: ............................ T: ............................ | C88: Item
A90: 12 | B90: Clause 12.0 - Effecting insurances
B91: =$B$76 -> F: ............................ V: ............................ T: ............................ | C91: Item
B96: Carried Forward | C96: R
B97: Brought Forward | C97: R
A99: 13 | B99: Clause 13.0 - Assignment
B100: =$B$76 -> F: ............................ V: ............................ T: ............................ | C100: Item
A102: 14 | B102: Clause 14.0 - Security
B103: =$B$76 -> F: ............................ V: ............................ T: ............................ | C103: Item
B105: Execution (A15 - A23)
A107: 15 | B107: Clause 15.0 - Preparation for and execution of the works
B108: =$B$76 -> F: ............................ V: ............................ T: ............................ | C108: Item
A110: 16 | B110: Clause 16.0 - Site and access
B112: A geotechnical investigation has been done and will be available for viewing at the offices of the Principal Agent. [16.4]
B113: The contractor will have full use of the site. Refer to Site Information item C.4.1.
B114: There are no current structures or services such as water, sewerage and electricity on site and connections will have to be made to main supply lines. Services will be pointed out to the tenderers at the site inspection meeting. Refer to Scope Of Works item C.3.4. (Refer to clause 16.7)
B115: =$B$76 -> F: ............................ V: ............................ T: ............................ | C115: Item
A117: 17 | B117: Clause 17.0 - Contract instructions
B118: =B115 -> F: ............................ V: ............................ T: ............................ | C118: Item
A120: 18 | B120: Clause 18.0 - Setting out of the works
B121: The contractor shall notify the principal agent if any encroachments of adjoining foundations, buildings, structures, pavements, boundaries, etc. exist in order that the necessary arrangements may be made for the rectification of any such encroachments [18.1].
B122: =B118 -> F: ............................ V: ............................ T: ............................ | C122: Item
A124: 19 | B124: Clause 19.0 - Temporary works and plant
B125: The contractor shall price opposite this item for compliance with all the requirements. Refer to item C.3.6.4. and C.4.1.3. Scope Of Works for details relating to enclosure and protection of the works and item 3.6.1. for office accommodation.
B126: =B122 -> F: ............................ V: ............................ T: ............................ | C126: Item
A128: 20 | B128: Clause 20.0 - Nominated subcontractors
B129: Refer to the provisions on general attendance hereinafter
B130: =B126 -> F: ............................ V: ............................ T: ............................ | C130: Item
A131: 21 | B131: Clause 21.0 - Selected subcontractors
B133: General attendance of n/s subcontractors for pricing by the contractor shall be in accordance with the n/s agreement. Notwithstanding this provision, general attendance shall be deemed to include for the contractor to provide free of charge to any n/s subcontractor such scaffolding as may reasonably be required by such n/s subcontractor for the execution of the relevant subcontract work
B134: =$B$76 -> F: ............................ V: ............................ T: ............................ | C134: Item
A136: 22 | B136: Clause 22.0 - Employer's direct contractors
B137: =$B$76 -> F: ............................ V: ............................ T: ............................ | C137: Item
A139: 23 | B139: Clause 23.0 - Contractor's domestic subcontractors
B140: =$B$76 -> F: ............................ V: ............................ T: ............................ | C140: Item
B142: Completion (A24 - A30)
A144: 24 | B144: Clause 24.0 - Practical completion
B145: =$B$76 -> F: ............................ V: ............................ T: ............................ | C145: Item
A147: 25 | B147: Clause 25.0 - Works completion
B148: =$B$76 -> F: ............................ V: ............................ T: ............................ | C148: Item
A150: 26 | B150: Clause 26.0 - Final completion
B151: =$B$76 -> F: ............................ V: ............................ T: ............................ | C151: Item
B154: Carried Forward | C154: R | D154: =SUM(D97:D153) -> 0
B155: Brought Forward | C155: R | D155: =D154 -> 0
A157: 27 | B157: Clause 27.0 - Latent defects liability period
B158: =$B$76 -> F: ............................ V: ............................ T: ............................ | C158: Item
A160: 28 | B160: Clause 28.0 - Sectional completion
B161: No sectional completion is anticipated.
B162: =$B$76 -> F: ............................ V: ............................ T: ............................ | C162: Item
A164: 29 | B164: Clause 29.0 - Revision of date for practical completion | C164: R
B165: The removal and replacement of materials and/or workmanship which do not conform to specification or the contract drawings shall not constitute grounds for the extension of the construction period nor for the adjustment of the contract value (Clause 29.3)
B166: =$B$76 -> F: ............................ V: ............................ T: ............................ | C166: Item
A168: 30 | B168: Clause 30.0 - Penalty for late or non-completion
B169: =$B$76 -> F: ............................ V: ............................ T: ............................ | C169: Item
B171: Payment (A31 - A35)
A173: 31 | B173: Clause 31.0 - Interim payment
B175: The inclusion of materials and goods stored off site in the amount authorised for payment in terms of clause 31.4 shall be at the sole discretion of the principal agent and such inclusion shall only be considered upon the provision, by the contractor, of an approved guarantee issued by a registered commercial bank. Clause 31.6.5 is therefore not applicable.
A178: 32 | B178: Clause 32.0 - Adjustment to the contract value
B180: The contract value shall be adjusted according to CPAP using information stated in the Contract Data [32.13]. Fluctuations in costs in the rate of Value Added Tax shall be deemed incorporated into the contract.
B181: Where prices are submitted by the contractor or n/s subcontractor during the progress of the works in respect of contract instructions or in regard to a claim under the terms of the contract and notwithstanding the fact that such prices may be used in an interim payment certificate, there is to be no presumption of acceptance. Should the principal agent wish to accept any such prices prior to the issue of the certificate of final completion, it shall be in writing.
B182: The contractor shall not receive any mark-up for overheads and profit on any omission of tenant installation work or tenant installation work by others. Claims for loss or profit shall not be entertained [32.2]
B183: =$B$76 -> F: ............................ V: ............................ T: ............................ | C183: Item
A185: 33 | B185: Clause 33.0 - Recovery of expense and loss
B186: =$B$76 -> F: ............................ V: ............................ T: ............................ | C186: Item
A188: 34 | B188: Clause 34.0 - Final account and final payment
B189: =$B$76 -> F: ............................ V: ............................ T: ............................ | C189: Item
A191: 35 | B191: Clause 35.0 - Payment to other parties
B192: =$B$76 -> F: ............................ V: ............................ T: ............................ | C192: Item
B194: Termination (A36 - A39)
A196: 36 | B196: Clause 36.0 - Termination by employer - contractor's default
B197: =$B$76 -> F: ............................ V: ............................ T: ............................ | C197: Item
A199: 37 | B199: Clause 37.0 - Termination by employer - loss and damage
B200: =$B$76 -> F: ............................ V: ............................ T: ............................ | C200: Item
A202: 38 | B202: Clause 38.0 - Termination by contractor - employer's default
B203: =$B$76 -> F: ............................ V: ............................ T: ............................ | C203: Item
A205: 39 | B205: Clause 39.0 - Termination - cessation of the works
B206: =$B$76 -> F: ............................ V: ............................ T: ............................ | C206: Item
B210: Carried Forward | C210: R | D210: =SUM(D155:D209) -> 0
B211: Brought Forward | C211: R | D211: =D210 -> 0
B213: Dispute (A40)
A215: 40 | B215: Clause 40.0 - Settlement of disputes
B216: =$B$76 -> F: ............................ V: ............................ T: ............................ | C216: Item
B218: Contract variables (A41 - A42)
A220: 41 | B220: Clause 41.0 - Post tender provisions
B221: The contractor is to complete before submission of his tender the JBCC Principal Building Agreement Contract Data CE
B222: =$B$76 -> F: ............................ V: ............................ T: ............................ | C222: Item
A224: 42 | B224: Clause 42.0 - Contractual agreement
B225: The required information of the contracting parties and the amount of the accepted contract sum shall be inserted in the agreement for signature of the agreement by the parties
B226: =$B$76 -> F: ............................ V: ............................ T: ............................ | C226: Item
B228: SECTION B - PRELIMINARIES
B229: Definitions and interpretation (B1)
A230: 43 | B230: Clause 1.0 - Definitions and interpretation
B231: =$B$76 -> F: ............................ V: ............................ T: ............................ | C231: Item
B233: Documents (B2)
A235: 44 | B235: Clause 2.1 - Checking of documents
B236: =$B$76 -> F: ............................ V: ............................ T: ............................ | C236: Item
A238: 45 | B238: Clause 2.2 - Provisional bills of quantities
B239: These bills of quantities are in multiple procurement format ie the "wet trades" - earthworks, concrete, formwork and reinforcement, precast concrete, masonry, waterproofing and sub-surface drainage - are provisionally measured and the subsequent trades are budgetary allowances and/or selected subcontract amounts.
B240: =$B$76 -> F: ............................ V: ............................ T: ............................ | C240: Item
A242: 46 | B242: B1.4 PROVISIONAL BILLS OF QUANTITIES
B243: =$B$76 -> F: ............................ V: ............................ T: ............................ | C243: Item
B245: Where reference is made in the documents to bills of quantities it shall be taken as referring to these Provisional Bills of Quantities. All quantities are provisional, are an indication of the extent and type of work to be executed and have been inserted in order to obtain competitive tenders. All work carried out under this contract shal be re measured and valued at schedule rates and in accordance with the Conditions of Contract
A247: 47 | B247: Clause 2.3 - Availability of construction documentation
B248: The budgetary allowances and selected subcontract amounts allocated for subsequent trades included in this agreement will be separately procured, based on multiple procurement of selected subcontractors during the construction period
B249: =$B$76 -> F: ............................ V: ............................ T: ............................ | C249: Item
B251: Previous work and adjoining properties (B3)
A253: 48 | B253: Clause 3.1 - Previous work - dimensional accuracy
B254: =$B$76 -> F: ............................ V: ............................ T: ............................ | C254: Item
A256: 49 | B256: Clause 3.2 - Previous work - defects
B257: =$B$76 -> F: ............................ V: ............................ T: ............................ | C257: Item
A259: 50 | B259: Clause 3.3 - Inspection of adjoining properties
B260: =$B$76 -> F: ............................ V: ............................ T: ............................ | C260: Item
B262: Samples, shop drawings and manufacturer's instructions (B4)
A264: 51 | B264: Clause 4.1 - Samples of materials
B265: =$B$76 -> F: ............................ V: ............................ T: ............................ | C265: Item
B267: Carried Forward | C267: R | D267: =SUM(D211:D265) -> 0
B268: Brought Forward | C268: R | D268: =D267 -> 0
A271: 52 | B271: Clause 4.2 - Workmanship samples
B272: =$B$76 -> F: ............................ V: ............................ T: ............................ | C272: Item
A274: 53 | B274: Clause 4.3 - Shop drawings
B275: =$B$76 -> F: ............................ V: ............................ T: ............................ | C275: Item
A277: 54 | B277: Clause 4.4 - Compliance with manufacturer's instructions
B278: =$B$76 -> F: ............................ V: ............................ T: ............................ | C278: Item
B280: Deposits and fees (B5)
A282: 55 | B282: Clause 5.1 - Deposits and fees
B283: =$B$76 -> F: ............................ V: ............................ T: ............................ | C283: Item
B285: Temporary services (B6)
A287: 56 | B287: Clause 6.1 - Water
B288: =$B$76 -> F: ............................ V: ............................ T: ............................ | C288: Item
A290: 57 | B290: Clause 6.2 - Electricity
B291: =$B$76 -> F: ............................ V: ............................ T: ............................ | C291: Item
A293: 58 | B293: Clause 6.3 - Two Name Boards (2)
B294: =$B$76 -> F: ............................ V: ............................ T: ............................ | C294: Item
A296: 59 | B296: Clause 6.4 - Ablution facilities
B297: =$B$76 -> F: ............................ V: ............................ T: ............................ | C297: Item
B299: Clause 6.5 - Site Offices, Meeting, Storage & Engineer's Office | C299: Item
A301: 60
B302: Clause 6.6 - Community Liaison Officer (8) Months | C302: Item
B303: =$B$76 -> F: ............................ V: ............................ T: ............................
A306: 61 | B306: Clause 8.1 - Special attendance
B307: =$B$76 -> F: ............................ V: ............................ T: ............................ | C307: Item
B309: General (B9)
A311: 62 | B311: Clause 9.1 - Protection of the works
B312: The contractor shall price opposite this item for compliance with all the requirements. Refer to Scope Of Works item C.4.1.3. for details relating to protection of the works
B313: =$B$76 -> F: ............................ V: ............................ T: ............................ | C313: Item
A315: 63 | B315: Clause 9.2 - Protection/isolation of existing/sectional occupied works
B316: =$B$76 -> F: ............................ V: ............................ T: ............................ | C316: Item
A318: 64 | B318: Clause 9.3 - Security of the works
B319: The contractor shall price opposite this item for compliance with all the requirements. Refer to Scope Of Works item C.4.1.3. for details relating to security of the works
B320: =$B$76 -> F: ............................ V: ............................ T: ............................ | C320: Item
A322: 65 | B322: Clause 9.4 - Notice before covering work
B323: =$B$76 -> F: ............................ V: ............................ T: ............................ | C323: Item
... 60 more rows

Sheet Earthworks
D1: Tender
A2: Item No | D2: Quantity | E2: Rate | F2: Amount
B4: EARTHWORKS (PROVISIONAL)
B6: Nature of ground
B8: The nature of the ground is assumed to be loose sandy material, therefore "earth", but possibly interspersed with "soft rock" or "hard rock"
B9: The nature of the ground is assumed to be gravel, therefore "earth", but possibly interspersed with "soft rock" or "hard rock"
B11: The nature of the ground is assumed to be silty clay with loose river boulders varying in size up to approximately 450mm diameter, all of which will be deemed as "earth", but possibly interspersed with "hard rock"
B12: Trial holes indicate that the nature of the ground is silty clay to a depth of approximately 500mm with fine to medium loose sandy material below, therefore "earth"
B14: A soils investigation has been carried out on the site by the engineer and the report is annexed to these bills of quantities. The soils report indicates that the ground varies between silty sand, reworked soil of mixed origin and residual shale, all of which will be deemed as "earth". All very hard unweathered shale, ironstone, etc, the removal of which necessitates the use of explosives or heavy duty hydraulic percussion hammers (peckers), will be classified as "hard rock"
B16: Carting away of excavated material
B18: Descriptions of carting away of excavated material shall be deemed to include loading excavated material onto trucks directly from the excavations or, alternatively, from stock piles situated on the building site
B20: Filling and layer work materials
B22: References such as "G1", "G2", etc and "C1", "C2", etc in descriptions of filling and layer work materials refer to corresponding references in the document "Guidelines for Road Construction Materials. TRH 14 : 1985" compiled by the Committee of State Road Authorities and the properties set out therein for each kind shall be applicable to the respective materials described hereinafter
B23: Testing
B25: Prices for filling are to include for all necessary density and other tests
B27: SITE CLEARANCE
B29: Site clearance
A31: 1 | B31: 1.1. Digging up and removing rubbish, debris, vegetation, hedges, shrubs, bush, etc and trees not exceeding 200mm girth | C31: m2 | D31: 390
B33: 1.2. Demolition (Demolition and Clearing all existing structures as per the Engineer's Instruction | D33: sum
B35: EXCAVATIONS ETC
B37: Digging up topsoil
A39: 2 | B39: Digging up topsoil to an average depth of ?mm and preserving for use of filling | C39: m2 | D39: =D31 -> 390
B41: Excavation in earth not exceeding 2m deep
A43: 3 | B43: Trenches | C43: m3 | D43: 200
B45: FILLING ETC
B47: Filling of natural gravel material (G7) supplied by the contractor, compacted to 93% Mod AASHTO density
A49: 4 | B49: Over site to make up levels | C49: m3 | D49: 80
A51: 5 | B51: Backfilling to trenches, holes, etc | C51: m3 | D51: 250
B56: Carried to final summary

Sheet Concrete, formwork + reinfmnt
D1: Tender
A2: Item No | D2: Quantity | E2: Rate | F2: Amount
B4: CONCRETE, FORMWORK AND REINFORCEMENT
B6: Cost of tests
B8: The costs of making, storing and testing of concrete test cubes as required under clause 7 "Tests" of SABS 1200 G shall include the cost of providing cube moulds necessary for the purpose, for testing costs and for submitting reports on the tests for approval. The testing shall be undertaken by an approved independent firm or institution nominated by the contractor (test cubes are measured separately)
B10: Formwork
B12: Descriptions of formwork shall be deemed to include use and waste only (except where described as "left in" or "permanent"), for fitting together in the required forms, wedging, plumbing and fixing to true angles and surfaces as necessary to ensure easy release during stripping and for reconditioning as necessary before re-use
B14: The vertical strutting shall be carried down to such construction as is sufficiently strong to afford the required support without damage and shall remain in position until the newly constructed work is able to support itself
B15: Formwork to soffits of solid slabs etc shall be deemed to be to slabs not exceeding 250mm thick unless otherwise described
B17: Formwork to soffits of slabs, beams, etc shall be deemed to be propped up exceeding 1,5m and not exceeding 3,5m high unless otherwise described
B18: Formwork to sides of bases, pile caps, ground beams, etc will only be measured where it is prescribed by the engineer for design reasons. Formwork necessitated by irregularity or collapse of excavated faces will not be measured and the cost thereof shall be deemed to be included in the allowance for taking the risk of collapse of the sides of the excavations, provision for which is made in "Earthworks"
B20: REINFORCED CONCRETE CAST ON/IN FORMWORK
B22: REINFORCED CONCRETE CAST AGAINST EXCAVATED SURFACES
B23: 25MPa/19mm concrete
A25: 23 | B25: Strip footings | C25: m3 | D25: 60
A27: 29 | B27: Surface beds on waterproofing | C27: m3 | D27: 33
B30: TEST CUBES
A32: 57 | B32: Making and testing 150 x 150 x 150mm concrete strength test cube (Provisional) | C32: No | D32: 17
B34: REINFORCEMENT
B36: REINFORCEMENT (PROVISIONAL)
B38: Mild steel reinforcement to structural concrete work
A40: 327 | B40: 8 mm Diameter bars | C40: t | D40: 8.6
B42: High tensile steel reinforcement to structural concrete work
A44: 327 | B44: 10 mm Diameter bars | C44: t | D44: 3.6
B46: Fabric reinforcement
A48: 334 | B48: Type 193 fabric reinforcement in concrete surface beds etc | C48: m2 | D48: 373
B66: Carried to final summary | F66: =SUM(F25:F48) -> 0

Sheet Masonry
B2: BILL NO 3 MASONRY | C2: UPGRADING OF DELAREYVILLE SPORTS COMPLEX
D4: Tender
A5: Item No | D5: Quantity | E5: Rate | F5: Amount
B7: BRICKWORK
B9: SUPERSTRUCTURE
B11: Brickwork of NFX bricks (14 MPa nominal compressive strength) in class II mortar
A13: 1 | B13: Half brick walls | C13: m2 | D13: 385
A15: 2 | B15: One brick walls | C15: m2 | D15: 840
B17: BRICKWORK SUNDRIES
B19: 2,5mm Galvanised brick reinforcement
A21: 3 | B21: 75mm Wide reinforcement built in horizontally | C21: m | D21: 900
A23: 4 | B23: 150mm Wide reinforcement built in horizontally | C23: m | D23: 2000
B25: Prestressed fabricated concrete lintels including necessary temporary supports
A26: 5 | B26: 110mm Lintels in lengths not exceeding 3m | C26: m | D26: 345
B48: Carried to final summary | F48: =SUM(F6:F47) -> 0

Sheet Waterproofing
D1: Tender
A2: Item No | D2: Quantity | E2: Rate | F2: Amount
B3: DAMPPROOFING OF WALLS AND FLOORS
B6: One layer 375 micron embossed polyethylene dampproof course (SANS 952-1985 type B)
A8: 1 | B8: In walls | C8: m | D8: 345
B10: One layer 250 micron green polyethylene waterproof sheeting (SANS 952-1985 type C) sealed at laps with PVC self-adhesive tape
A12: 2 | B12: Under surface beds | C12: m2 | D12: 400
B51: Carried to final summary | F51: =SUM(F3:F50) -> 0

Sheet Roof coverings, claddings, etc
A2: BILL NO 5 WATERPROOFING | C2: UPGRADING OF DELARAYVILLE SPORTS COMPLEX
D4: Tender
A5: Item No | D5: Quantity | E5: Rate | F5: Amount
B7: PROFILED METAL SHEETING AND ACCESSORIES
B9: 0.58mm "Cliplok" or similar approived roof sheeting fixed to timberpurlins
A11: 1 | B11: Roof covering with pitches not exceeding 25 degrees - Pavilion | C11: m2 | D11: 310
A13: 2 | B13: Roof covering with pitches not exceeding 25 degrees - Hall | C13: m2 | D13: 260
B51: Carried to final summary | F51: =SUM(F6:F50) -> 0

Sheet Carpentry and joinery
D1: Tender
A2: Item No | D2: Quantity | E2: Rate | F2: Amount
B3: STRUCTURAL TIMBERWORK ETC
A6: 1 | B6: Supply and install roof truss system, including roof rixing purlines (sheeting measured elsewhere) for Multi-Purpose Building as per 18007-0002 | C6: Sum | D6: 1
A8: 2 | B8: Supply and install roof truss system, including roof rixing purlines (sheeting measured elsewhere) for Gatehouse as per 18007-0003 | C8: Sum | D8: 1
B11: FLOORS AND SKIRTINGS
B14: SKIRTINGS
B16: Wrought meranti
A18: 3 | B18: 75 x 12mm Skirtings | C18: m | D18: 200
A21: 4 | B21: 20 x 20mm Skirtings including ?mm quadrant bead, nailed | C21: m | D21: =D18 -> 200
B23: TIMBER DOORS, WINDOWS, ETC
B25: DOORS ETC
B27: Hollow core flush doors with commercial veneer, hung to steel frames
A29: 5 | B29: 40mm Door 2100 x 850mm high | C29: No | D29: 30
A31: 6 | B31: 40mm Double door 2100 x 1500mm high with rebated (flush?) meeting edges | C31: No | D31: 6
B33: CUPBOARDS TO KITCHENS, BEDROOMS, ETC
A35: 7 | B35: Kitchen Cupboards for Multi-Purpose Building | C35: Sum | D35: 2
A37: 8 | B37: Carpentry for changes rooms | C37: Sum | D37: 2
B38: Carried to final summary

Sheet Ceilings, partitions, etc
A2: BILL NO 7 | D2: UPGRADING OF DELARAYVILLE SPORTS COMPLEX
A3: CARPENTRY AND JOINERY
D5: Tender
A6: Item No | D6: Quantity | E6: Rate | F6: Amount
B7: NAILED-UP CEILINGS
B9: 6,4mm Gypsum plasterboard with H-profile galvanised steel jointing strips
A11: 1 | B11: Ceilings including standard steel brandering at 500mm centres in one direction onlY | C11: m2 | D11: 385
B13: Gypsum plasterboard cornices
A15: 2 | B15: 75mm Coved cornices | C15: m | D15: 250
B57: Carried to final summary

Sheet Structural Steel Work
A4: ITEM NO | D4: Quantity | E4: Rate | F4: Amount
B5: STRUCTURAL STEELWORK
B7: User note
B9: Insert preambles/specifications as may be required or in order to supplement any applicable preambles, specifications or bills of quantities descriptions
B10: Take note that these Model Bills of Quantities utilise abbreviated descriptions
B11: The Model Preambles for Trades 2008 published by the Association of South African Quantity Surveyors is designed to support and extend the abbreviated bills of quantities descriptions by inter alia referring to SANS construction standards. Where such model preambles are not applicable (eg where BS or Euro construction standards are applicable or the design consultants provide other preambles/specifications for insertion), users are to ensure that the abbreviated descriptions when read in conjunction with the applicable measuring system, represents the full description by extending the abbreviated bills of quantities descriptions and/or by inserting appropriate preambles or specifications
B12: Consider inserting the preambles hereunder when using the abovementioned Model Preambles for Trades 2008
B14: Consideration is to be given in specific applications (e.g. where "heavy" steel structures such as in industrial plants, towers for mine shafts, etc are dominant) to implement the principles laid down by the "Measurement for Structural Steelwork" as prepared and recommended by the South African Institute of Steel Construction or any other appropriate principles This bill is, however, based on the building work measuring system
B15: Finishing-off painting is to be included in this trade only when the structural steel contractor is required to execute the work
B17: Descriptions
B19: Descriptions of bolts shall be deemed to include nuts and washers
B21: Descriptions of L-shaped and U-shaped anchor bolts shall be deemed to include bending, threading, nuts and washers and embedding in concrete
B22: Descriptions of expansion anchors and bolts and chemical anchors and bolts shall be deemed to include nuts, washers and mortices in brickwork or concrete
B24: STEEL COLUMNS AND BEAMS
B26: STEEL COLUMNS AND BEAMS
B28: User note
B30: In the event of there being only a limited number of different heights or lengths of columns or beams, the specific heights or lengths may be given separately or may be suitably grouped together
B32: Welded columns in single lengths with flat base, cap, bearer and connection plates, bolted to concrete
A34: 1 | B34: 246X147mm x 37kg/m I-section | C34: t | D34: 10.8 | F34: =D34*E34 -> 0
B37: STEEL TRUSSES
B39: STEEL TRUSSES
B41: Welded roof trusses of angle rafters, tie beams, rails, struts, braces, cleats, etc and flat bearer, gusset and connection plates, bolted to steel
A42: 36 | B42: Truss 2 (No 12 ) | C42: t | D42: 2.4 | F42: =D42*E42 -> 0
A44: 37 | B44: Truss 3 (No 2) | C44: t | D44: 0.4 | F44: =D44*E44 -> 0
B46: STEEL PURLINS, GIRTS, BRACING, ETC
B48: Purlins and girts, bolted to steel
A50: 42 | B50: 125 x 65 x 20 x 2,5mm Thick cold-formed lipped channel purlins | C50: t | D50: 1.5 | F50: =D50*E50 -> 0
B53: Welded bracing, anti-sag rails, etc with flat connection plates, bolted to steel
A55: 45 | B55: Angle bracing | C55: t | D55: 0.8 | F55: =D55*E55 -> 0
B57: Carried to final summary | F57: =SUM(F11:F56) -> 0

Sheet Ironmongery
D5: Tender
A6: Item No | D6: Quantity | E6: Rate | F6: Amount
B7: LOCKS
B9: Keys
B11: Unless otherwise described locks shall have two keys each
B13: EN-SUITE LOCKS
B16: The following locks are to be suitable for master and grand master key operation
A19: 1 | B19: Three-lever rebated lockset | C19: No | D19: 35
A21: 2 | B21: Master key | C21: No | D21: 5
B23: FIRE SIGNAGE
B25: Signage to SANS standrards for all fire requirements.
A27: 3 | B27: Supply, delivery and installation of a wall mounted single sided 150mm module Green Photo Luminescent E3 Fire Escape sign | C27: No | D27: 4
A29: 4 | B29: Supply, delivery and installation of a wall mounted single sided 150mm module Red Photo Luminescent F4 Fire Extinguisher sign | C29: No | D29: 12
A31: 5 | B31: Supply, delivery and installation of a wall mounted single sided 150mm module Red Photo Luminescent F13 Fire Hose Reel Extinguisher sign | C31: No | D31: 3
B33: Carried to final summary

Sheet Metalwork
D1: Tender
A2: Item No | D2: Quantity | E2: Rate | F2: Amount
B3: PRESSED STEEL DOOR FRAMES
B5: 1,2mm Rebated frames suitable for half brick walls
A7: 1 | B7: Frame for door 2100 x 850mm high | C7: No | D7: 15
B9: 1,6mm Rebated frames suitable for one brick walls
A11: 2 | B11: Frame for door 2100 x 850mm high | C11: No | D11: =Messaurements!N17+Messaurements!N18 -> 6
B13: STEEL WINDOWS
B15: Standard residential windows (Including Glazing, and Enamel Paint)
A17: 3 | B17: =Messaurements!A10 -> ND4F | C17: No | D17: 12
A19: 4 | B19: =Messaurements!A11 -> NC1 | C19: No | D19: 5
A21: 5 | B21: =Messaurements!A12 -> NE2 | C21: No | D21: 6
A23: 6 | B23: =Messaurements!A13 -> NE1 | C23: No | D23: 30
A25: 7 | B25: =Messaurements!A14 -> NC2F | C25: No | D25: 5
A27: 8 | B27: =Messaurements!A15 -> NCTX7S5 | C27: No | D27: 5
B52: Carried to final summary | F52: =SUM(F3:F51) -> 0

Sheet Plastering
D6: Tender
A7: Item No | D7: Quantity | E7: Rate | F7: Amount
A8: ITEM NO | D8: QUANTITY | E8: RATE | F8: AMOUNT
B10: PLASTER
B12: Cement plaster wood floated, on concrete
A14: 1 | B14: On walls | C14: m2 | D14: 2250
B56: Carried to final summary | F56: =SUM(F9:F55) -> 0

Sheet Tiling
D1: Tender
A2: Item No | D2: Quantity | E2: Rate | F2: Amount
B3: FLOOR TILING
B5: 350 x 350 x 8mm matt ceramic floor tiles on 8mm bedding on concrete and flush pointed with tinted grout
A7: 1 | B7: On floors and landings | C7: m2 | D7: 550
B51: Carried to final summary | F51: =SUM(F7:F50) -> 0

Sheet Paintwork
D1: Tender
A2: Item No | D2: Quantity | E2: Rate | F2: Amount
B3: FINISH ON NEW WORK
B5: ON FLOATED PLASTER SURFACES
B7: One coat acrylic masonry primer, two coats pre-pigmented texturised pure acrylic coating and one acrylic glaze coat, applied by specialists
A9: 1 | B9: Walls | C9: m2 | D9: 2250
B51: Carried to final summary | F51: =SUM(F8:F50) -> 0

Sheet Plumbing and drainage
D1: Tender
A2: Item No | D2: Quantity | E2: Rate | F2: Amount
B3: SANITARY FITTINGS
A6: 1 | B6: WC pan with double flap heavy duty plastic seat (including all plumbing fittings) | C6: No | D6: 11
A8: 2 | B8: Wall urinal with spreader and waste union(including all plumbing fittings | C8: No | D8: =Messaurements!N25 -> 4
A10: 3 | B10: Shower complete with all fittings | C10: No | D10: =Messaurements!N23 -> 11
A12: 4 | B12: Ceramic wash basins (incluidng all plumbing fittings) | C12: No | D12: 15
B14: SANITARY PLUMBING
A16: 5 | B16: Supply, and install all sewerage systems for the sport facility, including new and renovated areas | C16: Sum | D16: 1
B18: WATER SUPPLIES
A20: 6 | B20: Supply, and install all water systems for the sport facility, including new and renovated areas. | C20: Sum | D20: 1
B22: AS-BUILT DRAWINGS
A24: 7 | B24: Provision of as-built drawings | C24: Item | D24: 1
B26: FIRE PROTECTION
A28: 8 | B28: 4.5 kg CO2 Extinguisher complete with mounting board and hanging bracket | C28: No | D28: 4
A30: 9 | B30: 9 kg DCP Extinguisher complete with mounting board and hanging bracket | C30: No | D30: 8
B32: Install non-swinging, rotary pattern type fire hose reels in the positions as indicated on the project drawings. The fire hose reels must be complete with 30 m long, 20 mm diameter hose, hose run-out guide, clamps, nozzle bracket, fixing brackets and bolts, nozzle-cock and 25 mm stop valve all to conform to SANS 543. | C32: No | D32: 3
B46: Carried to final summary

Sheet External work
D1: Tender
A2: Item No | D2: Quantity | E2: Rate | F2: Amount
B5: PERIMITER WALL
A8: 1 | B8: Supply and install fencing around the grass athletic track, rugby and soccer field.
B28: Carried to final summary | F28: =SUM(F3:F27) -> 0

Sheet Messaurements (hidden)
A1: Descriptions | C1: Units | E1: Hall | G1: Pavillion | I1: Gatehouse | K1: Total | L1: Add Contingency | M1: Rounding
A2: Masonry
A3: 230mm Walls | C3: m2 | E3: =(50+8+15+4+4)*3.5 -> 283.5 | F3: 1 | G3: =(32.7*2.8)+(32.7*5.9)+((((2.8+5.9)/2)*4.5)*4) -> 362.79 | H3: 1 | I3: =12.4*3.5 -> 43.4 | J3: 1 | K3: =(E3*F3)+(G3*H3)+(I3*J3) -> 689.69 | L3: =K3*1.05 -> 724.1745 | M3: 10 | N3: =ROUNDUP((L3/M3),0)*M3 -> 730
A4: 115m Walls | C4: m2 | E4: =(6+3.2+6+3.6+3.6+3.4+0.7+3.2+4.3+1.2+1+3.2+4.4+1.2+1)*3 -> 138 | F4: 1 | G4: =((2+4+4.7+4+1.7+3.8+2+2+0.9+2.2)*2)*2.5 -> 136.5 | H4: 1 | I4: =2.9*3 -> 8.7 | J4: 1 | K4: =(E4*F4)+(G4*H4)+(I4*J4) -> 283.2 | L4: =K4*1.05 -> 297.36 | M4: 10 | N4: =ROUNDUP((L4/M4),0)*M4 -> 300
A5: Concrete
A6: 700x300 Strip Footings | C6: m3 | E6: =(E3/3.5)*0.7*0.3 -> 17.01 | F6: 1 | G6: =(75+(4.46*2))*0.7*0.3 -> 17.6232 | H6: 1 | I6: =(I3/3.5)*0.7*0.3 -> 2.604 | J6: 1 | K6: 37.2372 | L6: 39.09906 | M6: 5 | N6: 40
A7: 500x250 Strip Footings | C7: m3 | E7: =(E4/3)*0.5*0.2 -> 4.6 | F7: 1 | G7: =(G4/2.5)*0.5*0.25 -> 6.825 | H7: 1 | I7: =(I4/3)*0.5*0.2 -> 0.29 | J7: 1 | K7: 11.715 | L7: 12.30075 | M7: 5 | N7: 15
A8: 75mm Surface Bed | C8: m2 | E8: =11.5+7.1+46.5+5.8+5.8+9+9.6+9.4+5.6+9.4+9.6+8 -> 137.3 | F8: 1 | G8: 145.9 | H8: 1 | I8: 9.5 | J8: 1 | K8: =((E8*F8)+(G8*H8)+(I8*J8))*0.075 -> 21.9525 | L8: 23.050125 | M8: 5 | N8: 25
A9: Windows
A10: ND4F | C10: No | E10: 4 | F10: 1 | G10: 6 | H10: 1 | J10: 1 | K10: 10 | L10: 10.5 | M10: 1 | N10: 11
A11: NC1 | C11: No | E11: 2 | F11: 1 | H11: 1 | J11: 1 | K11: 2 | L11: 2.1 | M11: 1 | N11: 3
A12: NE2 | C12: No | E12: 3 | F12: 1 | H12: 1 | J12: 1 | K12: 3 | L12: 3.15 | M12: 1 | N12: 4
A13: NE1 | C13: No | E13: 16 | F13: 1 | G13: 4 | H13: 1 | I13: 1 | J13: 1 | K13: 21 | L13: 22.05 | M13: 1 | N13: 23
A14: NC2F | C14: No | E14: 1 | F14: 1 | H14: 1 | J14: 1 | K14: 1 | L14: 1.05 | M14: 1 | N14: 2
A15: NCTX7S5 | C15: No | F15: 1 | H15: 1 | I15: 1 | J15: 1 | K15: 1 | L15: 1.05 | M15: 1 | N15: 2
A16: Doors
A17: 230 Single - LH | C17: No | F17: 1 | G17: 2 | H17: 1 | J17: 1 | K17: 2 | L17: 2.1 | M17: 1 | N17: 3
A18: 230 Single - RH | C18: No | F18: 1 | G18: 2 | H18: 1 | J18: 1 | K18: 2 | L18: 2.1 | M18: 1 | N18: 3
A19: 115 Single - LH | C19: No | E19: 6 | F19: 1 | G19: 4 | H19: 1 | I19: 1 | J19: 1 | K19: 11 | L19: 11.55 | M19: 1 | N19: 12
A20: 115 Single - RH | C20: No | E20: 5 | F20: 1 | G20: 4 | H20: 1 | I20: 1 | J20: 1 | K20: 10 | L20: 10.5 | M20: 1 | N20: 11
A21: 230 Double | C21: No | E21: 2 | F21: 1 | H21: 1 | J21: 1 | K21: 2 | L21: 2.1 | M21: 1 | N21: 3
A22: Plumbing
A23: Showers | C23: No | E23: 4 | F23: 1 | G23: 6 | H23: 1 | J23: 1 | K23: 10 | L23: 10.5 | M23: 1 | N23: 11
A24: W/C | C24: No | E24: 4 | F24: 1 | G24: 6 | H24: 1 | I24: 1 | J24: 1 | K24: 11 | L24: 11.55 | M24: 1 | N24: 12
A25: Urinals | C25: No | E25: 1 | F25: 1 | G25: 2 | H25: 1 | J25: 1 | K25: 3 | L25: 3.15 | M25: 1 | N25: 4
A26: Wash Basin | C26: No | E26: 6 | F26: 1 | G26: 8 | H26: 1 | I26: 1 | J26: 1 | K26: 15 | L26: 15.75 | M26: 1 | N26: 16
A27: Kitchen Sink | C27: No | E27: 1 | F27: 1 | H27: 1 | J27: 1 | K27: 1 | L27: 1.05 | M27: 1 | N27: 2
A28: Ceilings
A29: Isoboard | C29: m2 | E29: =E8 -> 137.3 | F29: 1 | H29: 1 | I29: =I8 -> 9.5 | J29: 1 | K29: 146.8 | L29: 154.14 | M29: 10 | N29: 160
A30: Cornince | C30: m | E30: =11+13.6+27.6+10.4+10.4+12.2+12.4+12.3+10.2+12.4+12.3 -> 144.8 | F30: 1 | H30: 1 | I30: 12.3 | J30: 1 | K30: 157.1 | L30: 164.955 | M30: 10 | N30: 170
A31: Floor Finishing
A32: Ceramic Tiles | C32: m2 | E32: =E8-E33 -> 129.3 | F32: 1 | G32: =G8 -> 145.9 | H32: 1 | I32: =I8 -> 9.5 | J32: 1 | K32: 284.7 | L32: 298.935 | M32: 5 | N32: 300
A33: Terazzo Tiles | C33: m2 | E33: 8 | F33: 1 | H33: 1 | J33: 1 | K33: 8 | L33: 8.4 | M33: 5 | N33: 10
A34: Plaster
A35: Both Sides | C35: m2 | E35: =(E3*2)+(E4*2) -> 843 | F35: 1 | G35: =(G3+G4)*2 -> 998.58 | H35: 1 | I35: =(I3+I4)*2 -> 104.2 | J35: 1 | K35: 1945.78 | L35: 2043.069 | M35: 10 | N35: 2050
A36: Painting
A37: Plaster Primer | C37: m2 | E37: =E35 -> 843 | F37: 1 | G37: =G35 -> 998.58 | H37: 1 | I37: =I35 -> 104.2 | J37: 1 | K37: 1945.78 | L37: 2043.069 | M37: 10 | N37: 2050
A38: Top Coat (3 Coats) | C38: m2 | E38: =E37 -> 843 | F38: 1 | G38: =G37 -> 998.58 | H38: 1 | I38: =I37 -> 104.2 | J38: 1 | K38: 1945.78 | L38: 2043.069 | M38: 10 | N38: 2050
A39: Excavations
A40: 700x300 Strip Footings | C40: m3 | E40: =(E6/0.3)*0.8 -> 45.36 | F40: 1 | G40: =(G6/0.3)*0.8 -> 46.9952 | H40: 1 | I40: =(I6/0.3)*0.8 -> 6.944 | J40: 1 | K40: 99.2992 | L40: 104.26416 | M40: 10 | N40: 110
A41: 500x250 Strip Footings | C41: m3 | E41: =(E7/0.25)*0.75 -> 13.8 | F41: 1 | G41: =(G7/0.25)*0.75 -> 20.475 | H41: 1 | I41: =(I7/0.25)*0.75 -> 0.87 | J41: 1 | K41: 35.145 | L41: 36.90225 | M41: 10 | N41: 40
A42: Strip Top Spoil | C42: m2 | E42: =E8*1.2 -> 164.76 | F42: 1 | G42: =G8*1.2 -> 175.08 | H42: 1 | I42: =I8*1.2 -> 11.4 | J42: 1 | K42: 351.24 | L42: 368.802 | M42: 10 | N42: 370
A44: Water Proofing
A45: DPC Walls | L45: =(L6/0.7/0.3)+(L7/0.5/0.25) -> 284.592 | M45: 10 | N45: =ROUNDUP((L45/M45),0)*M45 -> 290
A46: DPC Floor | L46: =K8/0.075 -> 292.7 | M46: 10 | N46: 300
A51: Sports Field | C51: m2 | E51: 19150
A52: Leveling of Site | C52: m3 | E52: =E51*0.3 -> 5745 | L52: =E52 -> 5745 | M52: 10 | N52: =ROUNDUP((L52/M52),0)*M52 -> 5750
A54: Parking Area | C54: m2 | E54: 2500 | L54: =E54 -> 2500 | M54: 5 | N54: =ROUNDUP((L54/M54),0)*M54 -> 2500
A55: Bulk Excavation | C55: m3 | E55: =E54*0.4 -> 1000 | L55: 1000 | M55: 5 | N55: 1000
A56: Selected | C56: m3 | E56: =E54*0.15 -> 375 | L56: =E56 -> 375 | M56: 5 | N56: =ROUNDUP((L56/M56),0)*M56 -> 375
A57: Sub Base | C57: m3 | E57: =E54*0.15 -> 375 | L57: 375 | M57: 5 | N57: 375
A58: Stabilization | L58: 0 | M58: 5 | N58: 0
